[Event "Titled Tuesday Blitz May 24 Late 2022"]
[White "Svane, Rasmus"]
[Black "Riff, Vincent"]
[WhiteFideId "4657101"]
[BlackFideId "617776"]
[WhiteElo "2674"]
[BlackElo "2377"]
[Result "1-0"]
[Round "07"]
[TimeControl "180+1"]
[Date "2022.05.24"]
[WhiteClock "0:00:07"]
[BlackClock "0:00:06"]

1. Nf3 {[%clk 0:03:00]}  Nf6 {[%clk 0:02:59]} 2. g3 {[%clk 0:03:00]}  g6 {[%clk 0:02:59]} 3. Bg2 {[%clk 0:03:01]}  Bg7 {[%clk 0:02:59]} 4. O-O {[%clk 0:03:01]}  O-O {[%clk 0:03:00]} 5. d4 {[%clk 0:03:01]}  d6 {[%clk 0:03:01]} 6. Re1 {[%clk 0:03:01]}  c6 {[%clk 0:03:01]} 7. e4 {[%clk 0:03:01]}  Bg4 {[%clk 0:02:58]} 8. Nc3 {[%clk 0:02:53]}  Nbd7 {[%clk 0:02:57]} 9. h3 {[%clk 0:02:47]}  Bxf3 {[%clk 0:02:56]} 10. Bxf3 {[%clk 0:02:48]}  e5 {[%clk 0:02:56]} 11. Be3 {[%clk 0:02:48]}  exd4 {[%clk 0:02:53]} 12. Bxd4 {[%clk 0:02:49]}  Ne5 {[%clk 0:02:48]} 13. Bg2 {[%clk 0:02:49]}  Qc7 {[%clk 0:02:45]} 14. f4 {[%clk 0:02:49]}  Nc4 {[%clk 0:02:44]} 15. b3 {[%clk 0:02:47]}  Nb6 {[%clk 0:02:35]} 16. Qd3 {[%clk 0:02:46]}  Rad8 {[%clk 0:02:29]} 17. Rad1 {[%clk 0:02:46]}  Rfe8 {[%clk 0:02:21]} 18. Kh2 {[%clk 0:02:41]}  a6 {[%clk 0:02:15]} 19. Nb1 {[%clk 0:02:35]}  c5 {[%clk 0:02:14]} 20. Bb2 {[%clk 0:02:30]}  c4 {[%clk 0:02:07]} 21. Qd2 {[%clk 0:02:29]}  cxb3 {[%clk 0:02:06]} 22. axb3 {[%clk 0:02:30]}  d5 {[%clk 0:02:02]} 23. e5 {[%clk 0:02:24]}  Ne4 {[%clk 0:02:00]} 24. Qe2 {[%clk 0:02:19]}  h5 {[%clk 0:01:55]} 25. c4 {[%clk 0:02:12]}  h4 {[%clk 0:01:52]} 26. gxh4 {[%clk 0:02:12]}  Bh6 {[%clk 0:01:51]} 27. Qf3 {[%clk 0:01:57]}  f5 {[%clk 0:01:16]} 28. Nc3 {[%clk 0:01:28]}  Nxc3 {[%clk 0:01:12]} 29. Bxc3 {[%clk 0:01:29]}  dxc4 {[%clk 0:01:12]} 30. Ba5 {[%clk 0:01:19]}  Rd3 {[%clk 0:00:57]} 31. Rxd3 {[%clk 0:01:16]}  cxd3 {[%clk 0:00:58]} 32. Rd1 {[%clk 0:01:06]}  Qc5 {[%clk 0:00:54]} 33. Be1 {[%clk 0:00:47]}  Qd4 {[%clk 0:00:47]} 34. Bg3 {[%clk 0:00:45]}  d2 {[%clk 0:00:47]} 35. h5 {[%clk 0:00:42]}  Rc8 {[%clk 0:00:36]} 36. hxg6 {[%clk 0:00:39]}  Rc1 {[%clk 0:00:36]} 37. Qxb7 {[%clk 0:00:39]}  Qd7 {[%clk 0:00:34]} 38. Qxd7 {[%clk 0:00:27]}  Nxd7 {[%clk 0:00:35]} 39. Rxd2 {[%clk 0:00:28]}  Nc5 {[%clk 0:00:35]} 40. Rd6 {[%clk 0:00:21]}  Rc2 {[%clk 0:00:33]} 41. Kg1 {[%clk 0:00:18]}  Rc3 {[%clk 0:00:32]} 42. Kh2 {[%clk 0:00:15]}  Rc2 {[%clk 0:00:30]} 43. Rf6 {[%clk 0:00:13]}  Nd3 {[%clk 0:00:26]} 44. Rxf5 {[%clk 0:00:12]}  Kg7 {[%clk 0:00:26]} 45. Rf6 {[%clk 0:00:10]}  Re2 {[%clk 0:00:20]} 46. h4 {[%clk 0:00:10]}  Re3 {[%clk 0:00:13]} 47. h5 {[%clk 0:00:08]}  Re2 {[%clk 0:00:13]} 48. Rf7+ {[%clk 0:00:07]}  Kg8 {[%clk 0:00:13]} 49. Kh3 {[%clk 0:00:08]}  Re3 {[%clk 0:00:13]} 50. Kg4 {[%clk 0:00:07]}  Bg7 {[%clk 0:00:09]} 51. Bd5 {[%clk 0:00:07]}  Nb4 {[%clk 0:00:08]} 52. Bc4 {[%clk 0:00:06]}  Nd3 {[%clk 0:00:06]} 53. Rd7+ {[%clk 0:00:06]}  Kf8 {[%clk 0:00:06]} 54. Rd8+ {[%clk 0:00:06]}  Ke7 {[%clk 0:00:06]} 55. Bh4+ {[%clk 0:00:07]} 1-0


[Site "https://www.chess.com"]

[Event "Titled Tuesday Blitz May 24 Late 2022"]
[White "Toncheva, Nadya"]
[Black "Ivanisevic, Ivan"]
[WhiteFideId "2924056"]
[BlackFideId "912417"]
[WhiteElo "1888"]
[BlackElo "2495"]
[Result "0-1"]
[Round "07"]
[TimeControl "180+1"]
[Date "2022.05.24"]
[WhiteClock "0:00:08"]
[BlackClock "0:01:09"]

1. e4 {[%clk 0:03:00]}  c5 {[%clk 0:03:00]} 2. Nf3 {[%clk 0:03:00]}  d6 {[%clk 0:03:00]} 3. d4 {[%clk 0:03:01]}  cxd4 {[%clk 0:03:00]} 4. Nxd4 {[%clk 0:03:02]}  Nf6 {[%clk 0:03:00]} 5. f3 {[%clk 0:02:59]}  Nc6 {[%clk 0:02:58]} 6. c4 {[%clk 0:02:58]}  g6 {[%clk 0:02:54]} 7. Be3 {[%clk 0:02:56]}  Bg7 {[%clk 0:02:54]} 8. Nc3 {[%clk 0:02:56]}  O-O {[%clk 0:02:51]} 9. Be2 {[%clk 0:02:54]}  Nh5 {[%clk 0:02:49]} 10. Qd2 {[%clk 0:02:34]}  Nxd4 {[%clk 0:02:29]} 11. Bxd4 {[%clk 0:02:33]}  Bxd4 {[%clk 0:02:29]} 12. Qxd4 {[%clk 0:02:33]}  Nf4 {[%clk 0:02:30]} 13. O-O {[%clk 0:02:26]}  e5 {[%clk 0:02:30]} 14. Qf2 {[%clk 0:02:20]}  Bh3 {[%clk 0:02:29]} 15. Nd5 {[%clk 0:01:58]}  Bxg2 {[%clk 0:02:16]} 16. Nxf4 {[%clk 0:01:58]}  Bxf1 {[%clk 0:02:16]} 17. Nd5 {[%clk 0:01:59]}  Bxe2 {[%clk 0:02:15]} 18. Qxe2 {[%clk 0:01:59]}  f5 {[%clk 0:02:11]} 19. Kh1 {[%clk 0:01:46]}  Qh4 {[%clk 0:02:07]} 20. exf5 {[%clk 0:01:19]}  Rxf5 {[%clk 0:02:05]} 21. Rg1 {[%clk 0:01:20]}  Raf8 {[%clk 0:01:57]} 22. Rg4 {[%clk 0:01:19]}  Qd8 {[%clk 0:01:51]} 23. Qg2 {[%clk 0:01:18]}  Kh8 {[%clk 0:01:45]} 24. f4 {[%clk 0:00:46]}  exf4 {[%clk 0:01:40]} 25. Qh3 {[%clk 0:00:45]}  Qe8 {[%clk 0:01:24]} 26. Qc3+ {[%clk 0:00:28]}  Qe5 {[%clk 0:01:23]} 27. Qf3 {[%clk 0:00:16]}  Re8 {[%clk 0:01:13]} 28. Rh4 {[%clk 0:00:08]}  Qe1+ {[%clk 0:01:12]} 29. Kg2 {[%clk 0:00:08]}  Qxh4 {[%clk 0:01:09]} 0-1


[Site "https://www.chess.com"]

[Event "Titled Tuesday Blitz May 24 Late 2022"]
[White "Tristan, Leonardo"]
[Black "Can, Melih Kaan"]
[WhiteFideId "113816"]
[BlackFideId "6317383"]
[WhiteElo "2404"]
[BlackElo "2049"]
[Result "1-0"]
[Round "07"]
[TimeControl "180+1"]
[Date "2022.05.24"]
[WhiteClock "0:02:43"]
[BlackClock "0:02:29"]

1. d4 {[%clk 0:03:00]}  d5 {[%clk 0:02:57]} 2. Nf3 {[%clk 0:03:01]}  Nf6 {[%clk 0:02:57]} 3. Bf4 {[%clk 0:03:01]}  c5 {[%clk 0:02:57]} 4. e3 {[%clk 0:03:01]}  Nc6 {[%clk 0:02:58]} 5. Nbd2 {[%clk 0:03:02]}  e6 {[%clk 0:02:57]} 6. c3 {[%clk 0:03:02]}  Bd6 {[%clk 0:02:57]} 7. Bg3 {[%clk 0:03:02]}  O-O {[%clk 0:02:56]} 8. Bb5 {[%clk 0:03:02]}  a6 {[%clk 0:02:50]} 9. Bxc6 {[%clk 0:03:02]}  bxc6 {[%clk 0:02:51]} 10. Qa4 {[%clk 0:03:02]}  Bxg3 {[%clk 0:02:41]} 11. hxg3 {[%clk 0:03:03]}  Qb6 {[%clk 0:02:33]} 12. Qa3 {[%clk 0:02:45]}  cxd4 {[%clk 0:02:32]} 13. cxd4 {[%clk 0:02:45]}  c5 {[%clk 0:02:29]} 14. dxc5 {[%clk 0:02:43]}  Qxc5 {[%clk 0:02:29]} 15. Qxc5 {[%clk 0:02:43]} 1-0


[Site "https://www.chess.com"]

[Event "Titled Tuesday Blitz May 24 Late 2022"]
[White "Vasquez Schroeder, Rodrigo"]
[Black "Paravyan, David"]
[WhiteFideId "3400042"]
[BlackFideId "4194985"]
[WhiteElo "2567"]
[BlackElo "2569"]
[Result "1/2-1/2"]
[Round "07"]
[TimeControl "180+1"]
[Date "2022.05.24"]
[WhiteClock "0:00:29"]
[BlackClock "0:00:35"]

1. e4 {[%clk 0:03:00]}  e5 {[%clk 0:02:59]} 2. Nf3 {[%clk 0:03:00]}  Nf6 {[%clk 0:02:59]} 3. d4 {[%clk 0:02:56]}  Nxe4 {[%clk 0:02:58]} 4. Bd3 {[%clk 0:02:57]}  d5 {[%clk 0:02:58]} 5. Nxe5 {[%clk 0:02:57]}  Nd7 {[%clk 0:02:59]} 6. Nxd7 {[%clk 0:02:55]}  Bxd7 {[%clk 0:03:00]} 7. O-O {[%clk 0:02:53]}  Bd6 {[%clk 0:03:00]} 8. Nc3 {[%clk 0:02:53]}  Nxc3 {[%clk 0:03:00]} 9. bxc3 {[%clk 0:02:52]}  h5 {[%clk 0:03:01]} 10. h3 {[%clk 0:02:41]}  Qf6 {[%clk 0:02:57]} 11. Re1+ {[%clk 0:02:40]}  Kf8 {[%clk 0:02:53]} 12. Rb1 {[%clk 0:02:36]}  b6 {[%clk 0:02:52]} 13. Be3 {[%clk 0:02:33]}  Bf5 {[%clk 0:02:39]} 14. Qf3 {[%clk 0:02:28]}  Bxd3 {[%clk 0:02:36]} 15. Qxf6 {[%clk 0:02:28]}  gxf6 {[%clk 0:02:37]} 16. cxd3 {[%clk 0:02:29]}  Re8 {[%clk 0:02:36]} 17. g3 {[%clk 0:02:17]}  Kg7 {[%clk 0:02:34]} 18. Kg2 {[%clk 0:02:17]}  Kg6 {[%clk 0:02:34]} 19. Kf3 {[%clk 0:02:15]}  Re6 {[%clk 0:02:31]} 20. Bf4 {[%clk 0:02:13]}  Rhe8 {[%clk 0:02:25]} 21. Re3 {[%clk 0:02:14]}  Bxf4 {[%clk 0:02:01]} 22. Kxf4 {[%clk 0:02:09]}  Rd8 {[%clk 0:02:01]} 23. Rbe1 {[%clk 0:01:59]}  Rdd6 {[%clk 0:01:59]} 24. R1e2 {[%clk 0:01:58]}  Rc6 {[%clk 0:01:55]} 25. Rc2 {[%clk 0:01:58]}  b5 {[%clk 0:01:54]} 26. Kf3 {[%clk 0:01:48]}  Red6 {[%clk 0:01:42]} 27. a3 {[%clk 0:01:45]}  a5 {[%clk 0:01:41]} 28. Ree2 {[%clk 0:01:43]}  Re6 {[%clk 0:01:39]} 29. Re3 {[%clk 0:01:36]}  f5 {[%clk 0:01:28]} 30. Ke2 {[%clk 0:01:24]}  b4 {[%clk 0:01:23]} 31. axb4 {[%clk 0:01:21]}  axb4 {[%clk 0:01:23]} 32. c4 {[%clk 0:01:20]}  b3 {[%clk 0:01:22]} 33. Rb2 {[%clk 0:01:14]}  dxc4 {[%clk 0:01:20]} 34. dxc4 {[%clk 0:01:14]}  Rxc4 {[%clk 0:01:21]} 35. Rxb3 {[%clk 0:01:12]}  Rxd4 {[%clk 0:01:21]} 36. Rc3 {[%clk 0:01:13]}  Rd7 {[%clk 0:01:20]} 37. Kf3 {[%clk 0:01:12]}  Kf6 {[%clk 0:01:20]} 38. Rc5 {[%clk 0:01:11]}  Rxe3+ {[%clk 0:00:51]} 39. Kxe3 {[%clk 0:01:11]}  Kg5 {[%clk 0:00:48]} 40. h4+ {[%clk 0:01:06]}  Kg6 {[%clk 0:00:39]} 41. Kf4 {[%clk 0:01:00]}  Rd4+ {[%clk 0:00:38]} 42. Ke3 {[%clk 0:00:56]}  Re4+ {[%clk 0:00:38]} 43. Kf3 {[%clk 0:00:56]}  Re7 {[%clk 0:00:38]} 44. Kf4 {[%clk 0:00:55]}  f6 {[%clk 0:00:31]} 45. Rxf5 {[%clk 0:00:44]}  Re2 {[%clk 0:00:31]} 46. Rc5 {[%clk 0:00:44]}  Rxf2+ {[%clk 0:00:30]} 47. Ke3 {[%clk 0:00:44]}  Rf5 {[%clk 0:00:28]} 48. Rxc7 {[%clk 0:00:43]}  Re5+ {[%clk 0:00:28]} 49. Kf4 {[%clk 0:00:43]}  Ra5 {[%clk 0:00:29]} 50. Rc4 {[%clk 0:00:42]}  Rb5 {[%clk 0:00:29]} 51. Rd4 {[%clk 0:00:39]}  Rb1 {[%clk 0:00:30]} 52. g4 {[%clk 0:00:38]}  Rf1+ {[%clk 0:00:29]} 53. Kg3 {[%clk 0:00:38]}  Rg1+ {[%clk 0:00:29]} 54. Kf3 {[%clk 0:00:38]}  Rf1+ {[%clk 0:00:24]} 55. Kg3 {[%clk 0:00:38]}  Re1 {[%clk 0:00:24]} 56. gxh5+ {[%clk 0:00:37]}  Kxh5 {[%clk 0:00:25]} 57. Rf4 {[%clk 0:00:38]}  Kg6 {[%clk 0:00:25]} 58. Kg4 {[%clk 0:00:37]}  f5+ {[%clk 0:00:24]} 59. Kg3 {[%clk 0:00:35]}  Re3+ {[%clk 0:00:24]} 60. Kf2 {[%clk 0:00:35]}  Ra3 {[%clk 0:00:24]} 61. Kg2 {[%clk 0:00:35]}  Kf6 {[%clk 0:00:24]} 62. Rb4 {[%clk 0:00:35]}  Ke5 {[%clk 0:00:24]} 63. Kf2 {[%clk 0:00:34]}  f4 {[%clk 0:00:24]} 64. Rb5+ {[%clk 0:00:33]}  Ke4 {[%clk 0:00:24]} 65. Rb4+ {[%clk 0:00:31]}  Kf5 {[%clk 0:00:25]} 66. Rb8 {[%clk 0:00:26]}  Kg4 {[%clk 0:00:25]} 67. Rg8+ {[%clk 0:00:25]}  Kxh4 {[%clk 0:00:25]} 68. Rg7 {[%clk 0:00:26]}  Rb3 {[%clk 0:00:25]} 69. Rg8 {[%clk 0:00:26]}  Rc3 {[%clk 0:00:26]} 70. Rg7 {[%clk 0:00:26]}  Ra3 {[%clk 0:00:26]} 71. Rg8 {[%clk 0:00:26]}  Rb3 {[%clk 0:00:27]} 72. Rg7 {[%clk 0:00:27]}  Rg3 {[%clk 0:00:27]} 73. Rxg3 {[%clk 0:00:26]}  fxg3+ {[%clk 0:00:28]} 74. Kg2 {[%clk 0:00:26]}  Kg4 {[%clk 0:00:29]} 75. Kg1 {[%clk 0:00:27]}  Kf5 {[%clk 0:00:29]} 76. Kg2 {[%clk 0:00:27]}  Kf4 {[%clk 0:00:30]} 77. Kg1 {[%clk 0:00:27]}  Kg4 {[%clk 0:00:30]} 78. Kg2 {[%clk 0:00:27]}  Kh4 {[%clk 0:00:31]} 79. Kg1 {[%clk 0:00:27]}  Kh5 {[%clk 0:00:32]} 80. Kg2 {[%clk 0:00:28]}  Kg4 {[%clk 0:00:33]} 81. Kg1 {[%clk 0:00:28]}  Kh3 {[%clk 0:00:34]} 82. Kh1 {[%clk 0:00:28]}  g2+ {[%clk 0:00:34]} 83. Kg1 {[%clk 0:00:29]}  Kg3 {[%clk 0:00:35]} 1/2-1/2


[Site "https://www.chess.com"]

[Event "Titled Tuesday Blitz May 24 Late 2022"]
[White "Veiga, Emerson de Sousa"]
[Black "Shapiro, Daniel"]
[WhiteFideId "2151898"]
[BlackFideId "2001780"]
[WhiteElo "2034"]
[BlackElo "2263"]
[Result "0-1"]
[Round "07"]
[TimeControl "180+1"]
[Date "2022.05.25"]
[WhiteClock "0:00:01"]
[BlackClock "0:00:06"]

1. e4 {[%clk 0:03:00]}  c5 {[%clk 0:02:59]} 2. Nf3 {[%clk 0:02:59]}  e6 {[%clk 0:02:58]} 3. d4 {[%clk 0:03:00]}  cxd4 {[%clk 0:02:59]} 4. Nxd4 {[%clk 0:03:01]}  a6 {[%clk 0:02:59]} 5. Nc3 {[%clk 0:03:02]}  Qc7 {[%clk 0:02:59]} 6. Bd3 {[%clk 0:03:00]}  Bd6 {[%clk 0:02:58]} 7. h3 {[%clk 0:02:57]}  Nf6 {[%clk 0:02:54]} 8. O-O {[%clk 0:02:57]}  Bh2+ {[%clk 0:02:47]} 9. Kh1 {[%clk 0:02:56]}  Bf4 {[%clk 0:02:48]} 10. Qf3 {[%clk 0:02:22]}  Bxc1 {[%clk 0:02:42]} 11. Raxc1 {[%clk 0:02:23]}  d6 {[%clk 0:02:37]} 12. Rce1 {[%clk 0:02:21]}  Nbd7 {[%clk 0:02:35]} 13. Qe2 {[%clk 0:02:19]}  b5 {[%clk 0:02:27]} 14. f4 {[%clk 0:02:13]}  b4 {[%clk 0:02:24]} 15. e5 {[%clk 0:01:56]}  bxc3 {[%clk 0:02:19]} 16. exf6 {[%clk 0:01:57]}  Nxf6 {[%clk 0:02:19]} 17. f5 {[%clk 0:01:56]}  e5 {[%clk 0:02:16]} 18. bxc3 {[%clk 0:01:55]}  O-O {[%clk 0:02:06]} 19. Nf3 {[%clk 0:01:53]}  Bb7 {[%clk 0:01:56]} 20. Nd2 {[%clk 0:01:33]}  Qxc3 {[%clk 0:01:33]} 21. Ne4 {[%clk 0:01:24]}  Bxe4 {[%clk 0:01:28]} 22. Bxe4 {[%clk 0:01:25]}  d5 {[%clk 0:01:27]} 23. Bd3 {[%clk 0:01:18]}  e4 {[%clk 0:01:15]} 24. Bxa6 {[%clk 0:01:16]}  Ra7 {[%clk 0:01:11]} 25. a4 {[%clk 0:01:15]}  d4 {[%clk 0:00:59]} 26. Bb5 {[%clk 0:01:12]}  Re7 {[%clk 0:00:50]} 27. Qf2 {[%clk 0:01:08]}  Nd5 {[%clk 0:00:40]} 28. Qh4 {[%clk 0:00:56]}  Qxc2 {[%clk 0:00:28]} 29. f6 {[%clk 0:00:33]}  Nxf6 {[%clk 0:00:22]} 30. Rc1 {[%clk 0:00:20]}  Qd2 {[%clk 0:00:20]} 31. Rc6 {[%clk 0:00:12]}  Re6 {[%clk 0:00:13]} 32. Rxe6 {[%clk 0:00:07]}  fxe6 {[%clk 0:00:13]} 33. Bc4 {[%clk 0:00:08]}  Re8 {[%clk 0:00:12]} 34. Rxf6 {[%clk 0:00:05]}  gxf6 {[%clk 0:00:12]} 35. Qg4+ {[%clk 0:00:04]}  Kf7 {[%clk 0:00:10]} 36. Bb5 {[%clk 0:00:03]}  Rg8 {[%clk 0:00:09]} 37. Qxe4 {[%clk 0:00:01]}  Qd1+ {[%clk 0:00:06]} 0-1


[Site "https://www.chess.com"]

[Event "Titled Tuesday Blitz May 24 Late 2022"]
[White "Villiers, Thomas"]
[Black "Winkels, Marcel"]
[WhiteFideId "427209"]
[BlackFideId "1003887"]
[WhiteElo "2164"]
[BlackElo "1900"]
[Result "0-1"]
[Round "07"]
[TimeControl "180+1"]
[Date "2022.05.25"]
[WhiteClock "0:00:24"]
[BlackClock "0:00:40"]

1. c4 {[%clk 0:03:00]}  Nf6 {[%clk 0:02:58]} 2. Nc3 {[%clk 0:03:01]}  g6 {[%clk 0:02:58]} 3. g3 {[%clk 0:03:01]}  Bg7 {[%clk 0:02:59]} 4. Bg2 {[%clk 0:03:02]}  c6 {[%clk 0:02:59]} 5. e4 {[%clk 0:03:01]}  O-O {[%clk 0:02:56]} 6. Nge2 {[%clk 0:03:01]}  e5 {[%clk 0:02:53]} 7. d3 {[%clk 0:02:58]}  d6 {[%clk 0:02:53]} 8. O-O {[%clk 0:02:57]}  Be6 {[%clk 0:02:53]} 9. h3 {[%clk 0:02:56]}  Qc8 {[%clk 0:02:54]} 10. Kh2 {[%clk 0:02:57]}  Na6 {[%clk 0:02:48]} 11. Be3 {[%clk 0:02:56]}  Nc7 {[%clk 0:02:47]} 12. f4 {[%clk 0:02:54]}  Rd8 {[%clk 0:02:33]} 13. f5 {[%clk 0:02:49]}  gxf5 {[%clk 0:02:32]} 14. exf5 {[%clk 0:02:50]}  Bxf5 {[%clk 0:02:30]} 15. g4 {[%clk 0:02:50]}  Be6 {[%clk 0:02:28]} 16. Ng3 {[%clk 0:02:50]}  d5 {[%clk 0:02:23]} 17. Bg5 {[%clk 0:02:43]}  Nce8 {[%clk 0:02:19]} 18. cxd5 {[%clk 0:02:39]}  cxd5 {[%clk 0:02:19]} 19. Rc1 {[%clk 0:02:39]}  Qd7 {[%clk 0:02:18]} 20. Qf3 {[%clk 0:02:29]}  Rac8 {[%clk 0:02:11]} 21. Nh5 {[%clk 0:02:24]}  Nxh5 {[%clk 0:01:56]} 22. Bxd8 {[%clk 0:02:23]}  Rxd8 {[%clk 0:01:50]} 23. gxh5 {[%clk 0:02:21]}  h6 {[%clk 0:01:39]} 24. Qg3 {[%clk 0:01:59]}  Nf6 {[%clk 0:01:36]} 25. Rxf6 {[%clk 0:01:58]}  Kh8 {[%clk 0:01:25]} 26. Rff1 {[%clk 0:01:55]}  e4 {[%clk 0:01:19]} 27. dxe4 {[%clk 0:01:53]}  d4 {[%clk 0:01:18]} 28. Nd5 {[%clk 0:01:52]}  d3 {[%clk 0:01:04]} 29. Rc7 {[%clk 0:01:45]}  Qb5 {[%clk 0:01:02]} 30. Kh1 {[%clk 0:01:31]}  d2 {[%clk 0:00:58]} 31. Rd1 {[%clk 0:01:28]}  Qxb2 {[%clk 0:00:56]} 32. Qe3 {[%clk 0:01:21]}  Qe5 {[%clk 0:00:51]} 33. Re7 {[%clk 0:00:45]}  Rxd5 {[%clk 0:00:44]} 34. Rxd2 {[%clk 0:00:30]}  Rxd2 {[%clk 0:00:43]} 35. Qxd2 {[%clk 0:00:31]}  Qa1+ {[%clk 0:00:42]} 36. Kh2 {[%clk 0:00:24]}  Be5+ {[%clk 0:00:42]} 37. Qf4 {[%clk 0:00:24]}  Bxf4# {[%clk 0:00:40]} 0-1


[Site "https://www.chess.com"]

[Event "Titled Tuesday Blitz May 24 Late 2022"]
[White "Yaksin, Oleg"]
[Black "Ribeiro, Matheus Mendes Domingues"]
[WhiteFideId "24105880"]
[BlackFideId "324226923"]
[WhiteElo "2256"]
[BlackElo "1919"]
[Result "1-0"]
[Round "07"]
[TimeControl "180+1"]
[Date "2022.05.25"]
[WhiteClock "0:00:22"]
[BlackClock "0:00:04"]

1. d4 {[%clk 0:02:53]}  d5 {[%clk 0:02:59]} 2. c4 {[%clk 0:02:53]}  e6 {[%clk 0:03:00]} 3. Nf3 {[%clk 0:02:53]}  Nf6 {[%clk 0:03:01]} 4. g3 {[%clk 0:02:54]}  Be7 {[%clk 0:03:01]} 5. Bg2 {[%clk 0:02:54]}  O-O {[%clk 0:03:02]} 6. O-O {[%clk 0:02:55]}  dxc4 {[%clk 0:03:03]} 7. Qc2 {[%clk 0:02:55]}  a6 {[%clk 0:03:03]} 8. a4 {[%clk 0:02:54]}  Bd7 {[%clk 0:03:04]} 9. Rd1 {[%clk 0:02:54]}  Bc6 {[%clk 0:03:03]} 10. Nc3 {[%clk 0:02:55]}  Bxf3 {[%clk 0:02:53]} 11. Bxf3 {[%clk 0:02:56]}  Nc6 {[%clk 0:02:54]} 12. Bxc6 {[%clk 0:02:54]}  bxc6 {[%clk 0:02:55]} 13. Bg5 {[%clk 0:02:53]}  Rb8 {[%clk 0:02:51]} 14. a5 {[%clk 0:02:36]}  Bb4 {[%clk 0:02:37]} 15. Ne4 {[%clk 0:02:33]}  Be7 {[%clk 0:02:34]} 16. Bxf6 {[%clk 0:02:32]}  Bxf6 {[%clk 0:02:33]} 17. Qxc4 {[%clk 0:02:31]}  Rxb2 {[%clk 0:02:23]} 18. Qxa6 {[%clk 0:02:30]}  Qd5 {[%clk 0:02:00]} 19. Nc3 {[%clk 0:02:30]}  Qb3 {[%clk 0:01:52]} 20. Rd3 {[%clk 0:01:40]}  c5 {[%clk 0:01:25]} 21. Nd1 {[%clk 0:01:14]}  Qb7 {[%clk 0:00:52]} 22. Qc4 {[%clk 0:01:09]}  Rb1 {[%clk 0:00:50]} 23. Rxb1 {[%clk 0:01:05]}  Qxb1 {[%clk 0:00:50]} 24. Qxc5 {[%clk 0:01:05]}  Qa2 {[%clk 0:00:38]} 25. Qxc7 {[%clk 0:01:03]}  Qxe2 {[%clk 0:00:36]} 26. Qc3 {[%clk 0:00:50]}  h5 {[%clk 0:00:25]} 27. Ne3 {[%clk 0:00:42]}  Rb8 {[%clk 0:00:25]} 28. Rd1 {[%clk 0:00:31]}  Qa6 {[%clk 0:00:16]} 29. h4 {[%clk 0:00:27]}  Rc8 {[%clk 0:00:07]} 30. Qd3 {[%clk 0:00:26]}  Qxa5 {[%clk 0:00:06]} 31. d5 {[%clk 0:00:26]}  exd5 {[%clk 0:00:06]} 32. Nxd5 {[%clk 0:00:27]}  Qd8 {[%clk 0:00:04]} 33. Qf5 {[%clk 0:00:24]}  Rc5 {[%clk 0:00:03]} 34. Nxf6+ {[%clk 0:00:22]}  Qxf6 {[%clk 0:00:04]} 35. Qxc5 {[%clk 0:00:22]} 1-0


[Site "https://www.chess.com"]

[Event "Titled Tuesday Blitz May 24 Late 2022"]
[White "Yuan, Qingyu"]
[Black "Romanchuk, Viktor"]
[WhiteFideId "8609772"]
[BlackFideId "14109271"]
[WhiteElo "2359"]
[BlackElo "2242"]
[Result "1/2-1/2"]
[Round "07"]
[TimeControl "180+1"]
[Date "2022.05.24"]
[WhiteClock "0:00:04"]
[BlackClock "0:00:22"]

1. e4 {[%clk 0:03:00]}  e6 {[%clk 0:02:59]} 2. d4 {[%clk 0:03:00]}  d5 {[%clk 0:02:59]} 3. e5 {[%clk 0:03:01]}  c5 {[%clk 0:02:59]} 4. c3 {[%clk 0:03:02]}  Nc6 {[%clk 0:02:59]} 5. Nf3 {[%clk 0:03:02]}  Bd7 {[%clk 0:02:59]} 6. Be2 {[%clk 0:03:02]}  f6 {[%clk 0:02:59]} 7. exf6 {[%clk 0:02:54]}  Nxf6 {[%clk 0:03:00]} 8. Bf4 {[%clk 0:02:52]}  Qb6 {[%clk 0:02:59]} 9. b3 {[%clk 0:02:30]}  cxd4 {[%clk 0:02:56]} 10. cxd4 {[%clk 0:02:26]}  Bb4+ {[%clk 0:02:55]} 11. Kf1 {[%clk 0:02:22]}  O-O {[%clk 0:02:53]} 12. a3 {[%clk 0:02:12]}  Be7 {[%clk 0:02:51]} 13. Nc3 {[%clk 0:02:01]}  Ne4 {[%clk 0:02:46]} 14. Na4 {[%clk 0:02:01]}  Qd8 {[%clk 0:02:38]} 15. Be3 {[%clk 0:02:00]}  Na5 {[%clk 0:02:14]} 16. Nc5 {[%clk 0:01:54]}  Bxc5 {[%clk 0:02:14]} 17. dxc5 {[%clk 0:01:53]}  Nc3 {[%clk 0:02:14]} 18. Qc2 {[%clk 0:01:46]}  Nxe2 {[%clk 0:02:14]} 19. Qxe2 {[%clk 0:01:24]}  Nxb3 {[%clk 0:02:09]} 20. Rb1 {[%clk 0:01:23]}  Na5 {[%clk 0:02:09]} 21. h4 {[%clk 0:00:54]}  a6 {[%clk 0:01:56]} 22. Kg1 {[%clk 0:00:53]}  Bb5 {[%clk 0:01:54]} 23. Qc2 {[%clk 0:00:47]}  Nc4 {[%clk 0:01:52]} 24. Ng5 {[%clk 0:00:45]}  g6 {[%clk 0:01:49]} 25. Nxe6 {[%clk 0:00:45]}  Nxe3 {[%clk 0:01:39]} 26. fxe3 {[%clk 0:00:42]}  Qe7 {[%clk 0:01:38]} 27. Nxf8 {[%clk 0:00:41]}  Qxe3+ {[%clk 0:01:38]} 28. Qf2 {[%clk 0:00:41]}  Qd3 {[%clk 0:01:26]} 29. Re1 {[%clk 0:00:39]}  Rxf8 {[%clk 0:01:25]} 30. Qe3 {[%clk 0:00:37]}  Qxe3+ {[%clk 0:01:21]} 31. Rxe3 {[%clk 0:00:37]}  d4 {[%clk 0:01:22]} 32. Re5 {[%clk 0:00:25]}  Rf4 {[%clk 0:01:14]} 33. h5 {[%clk 0:00:22]}  Bc6 {[%clk 0:00:54]} 34. hxg6 {[%clk 0:00:20]}  hxg6 {[%clk 0:00:55]} 35. Rh3 {[%clk 0:00:18]}  Rg4 {[%clk 0:00:50]} 36. Re2 {[%clk 0:00:18]}  Rg5 {[%clk 0:00:47]} 37. Rd2 {[%clk 0:00:16]}  Kg7 {[%clk 0:00:37]} 38. Rhd3 {[%clk 0:00:12]}  Rxc5 {[%clk 0:00:36]} 39. Rxd4 {[%clk 0:00:12]}  Rc3 {[%clk 0:00:35]} 40. R4d3 {[%clk 0:00:13]}  Rc5 {[%clk 0:00:34]} 41. Rf2 {[%clk 0:00:09]}  Rc1+ {[%clk 0:00:31]} 42. Kh2 {[%clk 0:00:09]}  Rc5 {[%clk 0:00:31]} 43. Re3 {[%clk 0:00:09]}  Rh5+ {[%clk 0:00:30]} 44. Kg1 {[%clk 0:00:10]}  Rc5 {[%clk 0:00:29]} 45. Re7+ {[%clk 0:00:06]}  Kh6 {[%clk 0:00:29]} 46. Rf6 {[%clk 0:00:06]}  Rc1+ {[%clk 0:00:25]} 47. Kf2 {[%clk 0:00:04]}  Rc2+ {[%clk 0:00:25]} 48. Re2 {[%clk 0:00:04]}  Rxe2+ {[%clk 0:00:25]} 49. Kxe2 {[%clk 0:00:05]}  Bxg2 {[%clk 0:00:26]} 50. Ke3 {[%clk 0:00:03]}  Kg5 {[%clk 0:00:25]} 51. Rf2 {[%clk 0:00:03]}  Bc6 {[%clk 0:00:24]} 52. Ra2 {[%clk 0:00:03]}  Kf5 {[%clk 0:00:23]} 53. Rf2+ {[%clk 0:00:03]}  Ke5 {[%clk 0:00:22]} 54. Rf1 {[%clk 0:00:03]}  g5 {[%clk 0:00:22]} 55. Rg1 {[%clk 0:00:03]}  Kf5 {[%clk 0:00:22]} 56. Rf1+ {[%clk 0:00:04]} 1/2-1/2


[Site "https://www.chess.com"]